bitfinex-derivatives/quotes_SOLF0:USTF0_20240818
["timestamp","ask_amount","ask_price","bid_price","bid_amount"]
[1723967005045,7.59,141.68,141.66,0.04911839]
[1723967005840,7.59,141.67,141.56,3.60078411]
[1723967006035,7.59,141.65,141.59,7.59]
[1723967006342,7.59,141.66,141.6,7.59]
[1723967006542,3.5288,141.67,141.64,3.5295]
[1723967006847,7.59,141.68,141.64,3.5295]
[1723967007042,0.04860135,141.67,141.66,3.529]
[1723967027364,7.63860135,141.67,141.65,3.5292]
[1723967027570,7.59,141.66,141.64,0.04690357]
[1723967028862,7.59,141.66,141.64,3.57630357]
[1723967030267,0.04860135,141.67,141.65,3.5293]
[1723967033475,3.57750135,141.67,141.64,3.57640357]
[1723967033682,7.59,141.66,141.64,3.57640357]
[1723967045284,7.63860135,141.67,141.65,3.5293]
[1723967045480,0.04860135,141.67,141.65,3.5293]
[1723967045978,0.04860135,141.67,141.64,0.04690357]
[1723967046185,0.04860135,141.67,141.66,3.529]
[1723967046384,7.59,141.73,141.66,7.59]
[1723967046581,3.5277,141.72,141.68,3.5283]
[1723967047480,0.05222801,141.71,141.69,3.58023608]
[1723967049588,0.05222801,141.71,141.7,3.528]
[1723967049889,1.3029,141.77,141.69,7.64193608]
[1723967050187,3.527,141.75,141.71,3.5278]
[1723967050382,3.527,141.75,141.69,7.59]
[1723967050892,7.59,141.78,141.72,7.59]
[1723967051190,11.1162,141.78,141.74,3.5269]
[1723967051483,11.1162,141.78,141.72,7.59]
[1723967051877,3.5262,141.78,141.72,7.59]
[1723967052081,3.5262,141.78,141.74,3.57636057]
[1723967052082,0.04788213,141.76,141.74,3.57636057]
[1723967054187,0.04788213,141.76,141.74,0.04956057]
[1723967054388,7.59,141.75,141.74,0.04956057]
[1723967055697,11.1168,141.75,141.74,0.04956057]
[1723967057090,7.59,141.75,141.74,0.04956057]
[1723967065691,11.1168,141.75,141.74,0.04956057]
[1723967072797,3.57448213,141.76,141.74,0.04956057]
[1723967073001,7.59,141.75,141.74,0.04956057]
[1723967074700,0.04788213,141.76,141.74,0.04956057]
[1723967075508,0.04788213,141.76,141.75,3.5268]
[1723967075904,0.04788213,141.76,141.74,0.04956057]
[1723967076507,0.04788213,141.76,141.74,3.57646057]
[1723967079205,2.6482,141.84,141.75,3.5268]
[1723967079406,7.59,141.79,141.75,3.5268]
[1723967079611,7.59,141.77,141.75,3.5268]
[1723967080403,7.64226909,141.77,141.75,3.57364424]
[1723967083114,0.05226909,141.77,141.75,3.57364424]
[1723967084510,7.64226909,141.77,141.75,3.57364424]
[1723967094613,0.05226909,141.77,141.76,3.5265]
[1723967095613,0.05226909,141.77,141.75,3.57354424]
[1723967098716,3.57866909,141.77,141.75,0.04684424]
[1723967098917,11.16866909,141.77,141.75,0.04684424]
[1723967099623,7.59,141.76,141.75,0.04684424]
[1723967100925,7.59,141.73,141.66,3.9165]
[1723967101117,7.59,141.73,141.66,11.5065]
[1723967101319,7.59,141.73,141.71,3.5276]
[1723967101728,0.04838583,141.73,141.71,0.05325978]
[1723967101926,0.04838583,141.73,141.72,3.5275]
[1723967107332,0.04838583,141.73,141.71,0.05325978]
[1723967108135,0.04838583,141.73,141.72,3.5275]
[1723967115743,3.5266,141.76,141.73,3.5271]
[1723967116732,0.05054113,141.76,141.74,3.527]
[1723967117644,0.05054113,141.76,141.72,11.07433964]
[1723967118035,0.05054113,141.76,141.73,7.59]
[1723967118244,0.05054113,141.76,141.75,3.5268]
[1723967120138,3.5256,141.8,141.77,3.5262]
[1723967121136,3.56354928,141.8,141.77,3.57463636]
[1723967122545,11.15354928,141.8,141.77,3.57463636]
[1723967125044,0.03794928,141.8,141.77,0.04843636]
[1723967125644,0.03794928,141.8,141.78,3.5258]
[1723967126348,0.03794928,141.8,141.79,3.5258]
[1723967128145,7.62794928,141.8,141.78,3.526]
[1723967128345,7.59,141.79,141.77,0.04843636]
[1723967128544,11.1158,141.79,141.77,0.04843636]
[1723967129247,7.59,141.78,141.77,0.04843636]
[1723967130044,11.116,141.78,141.77,0.04843636]
[1723967130443,7.59,141.79,141.77,0.04843636]
[1723967131746,11.1159,141.79,141.77,0.04843636]
[1723967132339,0.03794928,141.8,141.77,0.04843636]
[1723967133147,0.03794928,141.8,141.77,3.57463636]
[1723967133148,3.56354928,141.8,141.77,3.57463636]
[1723967133552,0.03794928,141.8,141.77,0.04843636]
[1723967133754,0.03794928,141.8,141.77,7.63843636]
[1723967134854,0.03794928,141.8,141.78,3.526]
[1723967138856,3.56354928,141.8,141.77,3.57453636]
[1723967141257,11.15354928,141.8,141.77,3.57453636]
[1723967144654,3.56354928,141.8,141.77,3.57453636]
[1723967145856,0.03794928,141.8,141.78,3.526]
[1723967146460,0.03794928,141.8,141.79,3.5258]
[1723967149355,0.03794928,141.8,141.78,3.526]
[1723967155663,0.03794928,141.8,141.79,3.5258]
[1723967160564,0.03794928,141.8,141.78,3.5259]
[1723967163469,0.03794928,141.8,141.78,3.526]
[1723967163665,0.03794928,141.8,141.78,7.59]
[1723967164068,0.03794928,141.8,141.79,3.5258]
[1723967164271,7.59,141.84,141.78,7.59]
[1723967164668,11.1148,141.84,141.81,3.5253]
[1723967165367,11.1148,141.84,141.81,3.57327911]
[1723967165673,3.5248,141.84,141.81,3.57327911]
[1723967175571,3.5248,141.83,141.81,3.57327911]
[1723967175779,3.5248,141.83,141.81,0.04797911]
[1723967175780,11.1148,141.83,141.81,0.04797911]
[1723967178574,3.5248,141.83,141.81,0.04797911]
[1723967179682,7.59,141.84,141.81,3.57327911]
[1723967179683,11.1146,141.84,141.81,3.57327911]
[1723967179872,3.5246,141.84,141.81,3.57327911]
[1723967184883,11.1146,141.84,141.81,3.57327911]
[1723967185678,3.5248,141.83,141.81,0.04797911]
[1723967192085,3.5246,141.84,141.81,3.57317911]
[1723967193786,3.5248,141.83,141.81,0.04797911]
[1723967194689,3.5247,141.84,141.81,3.57327911]
[1723967198892,3.5248,141.83,141.81,0.04797911]
[1723967199897,3.5247,141.84,141.81,0.04797911]
[1723967200894,3.5248,141.83,141.81,0.04797911]
[1723967201094,11.02830211,141.82,141.72,63.86418571]
[1723967201292,7.59,141.79,141.72,60.25088827]
[1723967201486,7.59,141.78,141.72,67.84088827]
[1723967201692,7.59,141.78,141.72,11.5876]
[1723967202290,0.04797912,141.76,141.74,0.05092232]
[1723967203093,0.04797912,141.76,141.74,3.57782232]
[1723967216610,0.04797912,141.76,141.75,3.5268]
[1723967218109,11.1154,141.81,141.77,3.5261]
[1723967218304,7.59,141.81,141.77,3.5261]
[1723967219108,7.59,141.81,141.78,0.0507211]
[1723967219811,3.5256,141.8,141.78,0.0507211]
[1723967221408,3.5255,141.8,141.78,0.0507211]
[1723967221709,7.59,141.8,141.78,0.0507211]
[1723967222406,3.5258,141.79,141.78,0.0507211]
[1723967224414,11.1156,141.8,141.78,0.0507211]
[1723967225917,2.669,141.83,141.78,0.0507211]
[1723967225918,11.1154,141.81,141.78,3.5767211]
[1723967232017,11.1156,141.8,141.78,0.0507211]
[1723967232219,7.59,141.8,141.78,0.0507211]
[1723967232618,3.5258,141.79,141.78,0.0507211]
[1723967232820,11.1158,141.79,141.78,0.0507211]
[1723967234922,3.5262,141.78,141.72,3.9976]
[1723967235121,7.59,141.77,141.72,3.9976]
[1723967235818,11.1163,141.77,141.74,3.5269]
[1723967236024,7.6407211,141.77,141.74,0.05018637]
[1723967236425,7.59,141.76,141.74,0.05018637]
[1723967237026,11.1167,141.76,141.74,0.05018637]
[1723967237831,7.59,141.76,141.74,0.05018637]
[1723967238129,0.0507211,141.77,141.74,3.57708637]
[1723967238332,0.0507211,141.77,141.74,0.05018637]
[1723967239131,0.0507211,141.77,141.75,3.5266]
[1723967240023,0.0507211,141.77,141.74,0.05018637]
[1723967241831,0.0507211,141.77,141.76,3.5265]
[1723967247132,0.0507211,141.77,141.74,0.05018637]
[1723967247334,7.6407211,141.77,141.74,0.05018637]
[1723967248137,11.1671211,141.77,141.74,3.57708637]
[1723967250238,3.5266,141.76,141.74,3.57708637]
[1723967250733,3.5266,141.76,141.74,0.05018637]
[1723967253143,3.5268,141.75,141.74,0.05018637]
[1723967253434,3.5268,141.75,141.67,3.5287]
[1723967253435,18.66187023,141.75,141.67,3.5287]
[1723967253635,7.59,141.69,141.63,11.4864]
[1723967254238,7.59,141.69,141.67,3.5287]
[1723967254439,0.04642293,141.69,141.67,7.63566548]
[1723967254641,0.04642293,141.69,141.68,7.59]
[1723967255433,0.04642293,141.69,141.68,11.1184]
[1723967256040,0.04642293,141.69,141.68,3.5284]
[1723967265943,225.0,141.8,141.73,3.5272]
[1723967266140,7.59,141.77,141.73,3.5272]
[1723967266546,3.5268,141.76,141.72,3.5274]
[1723967267149,0.04585049,141.75,141.73,0.0455358]
[1723967268548,0.04585049,141.75,141.73,3.5727358]
[1723967268747,0.04585049,141.75,141.73,0.0455358]
[1723967269243,0.04585049,141.75,141.74,3.527]
[1723967269445,3.57265049,141.75,141.73,0.0455358]
[1723967273441,0.04585049,141.75,141.73,0.0455358]
[1723967273750,0.04585049,141.75,141.73,7.6355358]
[1723967274851,0.04585049,141.75,141.74,3.527]
[1723967275453,0.04585049,141.75,141.73,3.5726358]
[1723967278857,0.04585049,141.75,141.73,0.0455358]
[1723967279757,0.04585049,141.75,141.73,3.5726358]
[1723967280256,7.63585049,141.75,141.73,3.5726358]
[1723967281048,0.04585049,141.75,141.73,3.5726358]
[1723967283757,11.16265049,141.75,141.73,0.0455358]
[1723967284659,3.527,141.74,141.73,0.0455358]
[1723967284857,3.527,141.74,141.68,8.9458]
[1723967284858,11.117,141.74,141.68,8.9458]
[1723967285758,11.117,141.74,141.71,3.5276]
[1723967285959,11.117,141.74,141.71,3.57247539]
[1723967287264,3.527,141.74,141.71,3.57247539]
[1723967287460,3.57275049,141.75,141.72,3.5275]
[1723967298378,3.57275049,141.75,141.71,3.57257539]
[1723967298379,11.1171,141.74,141.71,3.57257539]
[1723967298573,7.59,141.73,141.71,0.04487539]
[1723967299081,11.16585973,141.73,141.71,0.04487539]
[1723967299381,14.69325973,141.73,141.71,0.04487539]
[1723967301478,7.59,141.72,141.68,3.5285]
[1723967301679,7.59,141.7,141.68,3.5285]
[1723967302175,7.59,141.7,141.61,1.3961]
[1723967302379,55.10585973,141.73,141.61,8.9861]
[1723967302380,7.59,141.67,141.61,8.9861]
[1723967302580,7.59,141.67,141.64,3.5295]
[1723967302775,0.04452852,141.65,141.64,3.5295]
[1723967304882,0.04452852,141.65,141.63,3.57687624]
[1723967305073,0.04452852,141.65,141.63,0.04717624]
[1723967305485,0.04452852,141.65,141.63,3.57697624]
[1723967306781,3.57382852,141.65,141.63,0.04717624]
[1723967308482,0.04452852,141.65,141.63,3.57697624]
[1723967316585,7.59,141.64,141.63,0.04717624]
[1723967320396,11.1195,141.64,141.57,2.6779]
[1723967320597,7.59,141.63,141.57,10.2679]
[1723967321188,11.1198,141.63,141.6,3.5304]
[1723967321607,11.1662598,141.63,141.6,3.58303868]
[1723967323096,14.65556405,141.63,141.6,3.58303868]
[1723967324595,3.53,141.62,141.6,3.58303868]
[1723967324801,3.53,141.62,141.6,0.05263868]
[1723967327595,3.5303,141.61,141.6,0.05263868]
[1723967327901,11.12576405,141.63,141.6,0.05263868]
[1723967328805,3.5302,141.62,141.6,0.05263868]
[1723967334099,11.12576405,141.63,141.6,0.05263868]
[1723967334100,0.0464598,141.63,141.6,0.05263868]
[1723967334299,0.0464598,141.63,141.6,7.64263868]
[1723967335006,0.0464598,141.63,141.62,3.53]
[1723967345821,7.59,141.69,141.62,7.59]
[1723967346014,7.59,141.69,141.63,7.59]
[1723967346311,33.93585973,141.73,141.63,7.59]
[1723967346511,7.59,141.7,141.63,11.12233985]
[1723967346713,7.59,141.71,141.65,7.59]
[1723967346910,0.05290557,141.68,141.67,3.5286]
[1723967352514,7.64290557,141.68,141.66,3.5289]
[1723967354223,7.64290557,141.68,141.65,0.0465022]
[1723967354419,7.59,141.66,141.65,0.0465022]
[1723967356223,11.119,141.67,141.65,0.0465022]
[1723967360923,7.59,141.66,141.65,0.0465022]
[1723967361519,7.59,141.67,141.65,0.0465022]
[1723967361719,7.59,141.67,141.65,3.5757022]
[1723967364618,0.05290557,141.68,141.67,3.5288]
[1723967365420,0.05290557,141.68,141.65,0.0465022]
[1723967365421,7.64290557,141.68,141.65,0.0465022]
[1723967365622,7.59,141.66,141.65,0.0465022]
[1723967365822,11.119,141.66,141.65,0.0465022]
[1723967369022,7.59,141.66,141.65,0.0465022]
[1723967370623,11.1189,141.67,141.65,0.0465022]
[1723967371718,0.05290557,141.68,141.65,0.0465022]
[1723967371920,0.05290557,141.68,141.66,7.59]
[1723967372327,0.05290557,141.68,141.67,3.5288]
[1723967383328,0.05290557,141.68,141.65,0.0465022]
[1723967383524,7.59,141.66,141.56,5.40313587]
[1723967383729,2.6209,141.7,141.6,7.59]
[1723967383929,7.59,141.67,141.61,1.3459]
[1723967384125,7.59,141.67,141.64,3.5294]
[1723967384631,7.63578654,141.67,141.64,3.57707679]
[1723967395445,11.16458654,141.67,141.64,3.57707679]
[1723967397141,0.04578654,141.67,141.65,3.5293]
[1723967404454,3.57458654,141.67,141.65,3.5293]
[1723967404656,0.04578654,141.67,141.65,3.5293]
[1723967406153,7.63578654,141.67,141.64,3.57717679]
[1723967406453,7.63578654,141.67,141.64,0.04767679]
[1723967406454,7.59,141.65,141.64,0.04767679]
[1723967408357,11.16468654,141.67,141.64,0.04767679]
[1723967409059,7.63578654,141.67,141.64,3.57707679]
[1723967410457,7.59,141.66,141.64,3.57707679]
[1723967412258,7.59,141.66,141.64,0.04767679]
[1723967413254,11.1191,141.66,141.64,0.04767679]
[1723967428481,0.04578654,141.67,141.64,0.04767679]
[1723967429372,7.59,141.71,141.65,7.59]
[1723967430475,0.05403293,141.69,141.67,0.04995937]
[1723967430678,0.05403293,141.69,141.67,3.57875937]
[1723967436383,7.59,141.68,141.67,0.04995937]
[1723967436883,11.1185,141.68,141.67,0.04995937]
[1723967439384,37.95,141.68,141.58,3.531]
[1723967439584,7.59,141.62,141.56,11.6196]
[1723967439879,11.1201,141.62,141.58,3.5308]
[1723967440582,0.04463857,141.61,141.59,0.05293868]
[1723967442777,0.04463857,141.61,141.59,3.58363868]
[1723967445780,1.3471,141.67,141.59,0.05293868]
[1723967446087,11.1197,141.64,141.59,0.05293868]
[1723967446283,3.5297,141.64,141.59,0.05293868]
[1723967446883,7.63867769,141.63,141.59,0.05293868]
[1723967447084,7.63867769,141.63,141.6,3.5305]
[1723967447294,0.04867769,141.63,141.59,0.05293868]
[1723967447987,0.04867769,141.63,141.6,3.5305]
[1723967449989,3.57857769,141.63,141.6,3.5305]
[1723967450191,7.59,141.62,141.6,3.5305]
[1723967450686,7.59,141.62,141.59,3.58363868]
[1723967455085,11.1201,141.62,141.59,3.58363868]
[1723967458197,7.59,141.62,141.59,3.58363868]
[1723967459400,11.16857769,141.63,141.59,3.58363868]
[1723967463097,11.16857769,141.63,141.6,3.5305]
[1723967468209,7.63867769,141.63,141.61,3.5302]
[1723967469203,7.63867769,141.63,141.59,0.05293868]
[1723967469709,7.63867769,141.63,141.61,3.5303]
[1723967473006,7.63867769,141.63,141.59,0.05293868]
[1723967473211,7.59,141.62,141.59,0.05293868]
[1723967473905,7.59,141.6,141.59,0.05293868]
[1723967474105,7.59,141.6,141.52,7.59]
[1723967474407,7.59,141.58,141.52,7.59]
[1723967475209,0.04678741,141.56,141.55,3.5318]
[1723967476603,0.04678741,141.56,141.55,11.1218]
[1723967476902,30.36,141.66,141.55,7.59]
[1723967477102,7.59,141.61,141.55,7.59]
[1723967477910,0.05180743,141.59,141.57,0.05056445]
[1723967478102,0.05180743,141.59,141.58,3.5309]
[1723967483013,7.64180743,141.59,141.57,0.05056445]
[1723967483315,7.59,141.57,141.5,7.59]
[1723967483915,7.59,141.57,141.54,3.5319]
[1723967484307,7.64170245,141.57,141.54,3.57767864]
[1723967485402,7.64170245,141.57,141.55,3.5316]
[1723967485710,0.05170245,141.57,141.55,3.5316]
[1723967486213,0.05170245,141.57,141.56,3.5315]
[1723967486408,7.59,141.61,141.55,7.59]
[1723967486914,11.1205,141.61,141.57,3.5312]
[1723967487208,7.59,141.59,141.54,1.2861]
[1723967487412,7.59,141.59,141.55,0.05115196]
[1723967487605,0.04933646,141.58,141.56,3.5315]
[1723967487810,0.04933646,141.58,141.55,0.05115196]
[1723967488703,0.04933646,141.58,141.57,3.5313]
[1723967493013,1.3952,141.65,141.57,7.59]
[1723967493318,7.59,141.64,141.57,7.59]
[1723967493909,11.1197,141.64,141.6,3.5303]
[1723967494115,0.04526315,141.62,141.6,3.5303]
[1723967494511,0.04526315,141.62,141.61,3.5303]
[1723967494912,0.04526315,141.62,141.59,0.04757555]
[1723967495814,7.59,141.61,141.59,0.04757555]
[1723967496411,7.59,141.61,141.6,3.5305]
[1723967497114,7.59,141.61,141.59,0.04757555]
[1723967497416,1.3952,141.65,141.44,56.50129355]
[1723967497417,7.59,141.6,141.5,7.59]
[1723967497616,7.59,141.57,141.56,3.5314]
[1723967499118,7.59,141.57,141.55,3.58494929]
[1723967501117,7.59,141.56,141.5,2.7569]
[1723967501817,7.59,141.56,141.54,3.532]
[1723967502222,7.64240099,141.56,141.54,3.57682]
[1723967502720,0.05240099,141.56,141.54,3.57682]
[1723967502920,7.64240099,141.56,141.54,3.57682]
[1723967506920,7.59,141.55,141.47,8.9405]
[1723967507216,51.56,141.59,141.47,8.9405]
[1723967507217,7.59,141.53,141.47,8.9405]
[1723967507415,7.59,141.53,141.51,3.5326]
[1723967507924,7.63853418,141.53,141.51,3.57818418]
[1723967508638,7.63853418,141.53,141.51,0.04558418]
[1723967510828,7.59,141.52,141.45,2.7999]
[1723967511017,7.59,141.5,141.45,2.7999]
[1723967511223,7.59,141.5,141.47,3.5335]
[1723967512025,7.64268501,141.5,141.47,3.57978221]
[1723967512222,7.64268501,141.5,141.48,3.5335]
[1723967520326,7.64268501,141.5,141.47,0.04628221]
[1723967520327,7.59,141.49,141.47,0.04628221]
[1723967520727,3.5335,141.48,141.47,0.04628221]
[1723967521836,11.1234,141.49,141.47,0.04628221]
[1723967523037,7.59,141.48,141.47,0.04628221]
[1723967530444,3.5338,141.47,141.43,3.5348]
[1723967530641,7.59,141.44,141.43,3.5348]
[1723967532849,7.59,141.44,141.42,3.58517091]
[1723967533042,3.58499153,141.45,141.42,3.58517091]
[1723967533043,7.59,141.43,141.42,3.58517091]
[1723967537947,7.59,141.43,141.42,0.05027091]
[1723967538250,7.59,141.43,141.37,55.16717788]
[1723967538642,11.1249,141.43,141.37,55.16717788]
[1723967539147,0.0509182,141.41,141.39,0.05175127]
[1723967539842,0.0509182,141.41,141.4,3.5355]
[1723967540443,0.0509182,141.41,141.39,3.58745127]
[1723967541048,7.6409182,141.41,141.39,0.05175127]
[1723967541345,0.0509182,141.41,141.39,0.05175127]
[1723967541540,7.6409182,141.41,141.39,3.58755127]
[1723967542441,11.1762182,141.41,141.39,0.05175127]
[1723967542639,7.59,141.4,141.36,1.2753]
[1723967543350,7.59,141.4,141.37,3.5361]
[1723967543848,7.59,141.4,141.37,3.58116734]
[1723967544346,0.0509182,141.41,141.38,3.5358]
[1723967544557,0.0509182,141.41,141.37,0.04506734]
[1723967545946,0.0509182,141.41,141.4,3.5355]
[1723967550259,7.6409182,141.41,141.4,3.5355]
[1723967551357,0.0509182,141.41,141.4,3.5355]
[1723967551554,7.6409182,141.41,141.4,3.5355]
[1723967554561,7.6409182,141.41,141.39,3.5357]
[1723967554762,7.59,141.4,141.39,3.5357]
[1723967555862,0.0509182,141.41,141.4,3.5355]
[1723967557256,7.6409182,141.41,141.4,3.5355]
[1723967569575,7.6409182,141.41,141.39,3.5357]
[1723967569876,7.59,141.4,141.39,3.5357]
[1723967571181,7.59,141.4,141.38,3.5359]
[1723967573780,7.59,141.4,141.39,3.5358]
[1723967577281,0.0509182,141.41,141.4,3.5355]
[1723967577784,7.6409182,141.41,141.37,0.04506734]
[1723967578087,7.59,141.39,141.38,3.536]
[1723967580877,7.59,141.39,141.37,0.04506734]
[1723967581082,7.59,141.38,141.31,2.6531]
[1723967581290,7.59,141.36,141.31,1.3185]
[1723967581483,7.59,141.36,141.31,6.11930434]
[1723967582083,0.05145224,141.35,141.32,0.0470387]
[1723967582886,0.05145224,141.35,141.34,3.537]
[1723967585294,1.3953,141.43,141.39,3.5357]
[1723967585492,7.59,141.41,141.39,3.5357]
[1723967586392,7.64263629,141.41,141.39,3.58307468]
[1723967588991,7.64263629,141.41,141.4,3.5355]
[1723967592897,7.64263629,141.41,141.39,0.04737468]
[1723967593790,11.17793629,141.41,141.39,0.04737468]
[1723967594495,7.64263629,141.41,141.39,0.04737468]
[1723967595798,7.64263629,141.41,141.39,3.58317468]
[1723967599000,0.05263629,141.41,141.4,3.5355]
[1723967599300,7.64263629,141.41,141.39,0.04737468]
[1723967600593,7.64263629,141.41,141.24,73.85480021]
[1723967600793,7.59,141.37,141.32,4.011]
[1723967601604,0.04635499,141.36,141.33,0.04845371]
[1723967602693,0.04635499,141.36,141.35,3.5368]
[1723967610108,7.59,141.41,141.39,3.5357]
[1723967611207,7.63514722,141.41,141.39,3.58325493]
[1723967612914,0.04514722,141.41,141.39,3.58325493]
[1723967613216,7.59,141.4,141.39,3.58325493]
[1723967615512,0.04514722,141.41,141.4,3.5355]
[1723967618408,7.63514722,141.41,141.4,3.5355]
[1723967619118,7.63514722,141.41,141.39,0.04755493]
[1723967619320,7.59,141.4,141.39,3.58305493]
[1723967621009,7.59,141.4,141.3,21.07656713]
[1723967621210,25.26,141.43,141.35,4.06]
[1723967621422,7.59,141.37,141.35,4.06]
[1723967621614,7.59,141.37,141.35,3.5366]
[1723967622216,7.63495879,141.37,141.35,3.58836001]
[1723967627119,7.63495879,141.37,141.35,0.05176001]
[1723967627423,7.59,141.36,141.35,0.05176001]
[1723967633224,3.58125879,141.37,141.35,0.05176001]
[1723967633436,7.63495879,141.37,141.35,0.05176001]
[1723967634231,11.17125879,141.37,141.35,0.05176001]
[1723967635022,7.63495879,141.37,141.35,0.05176001]
[1723967636937,0.04495879,141.37,141.36,3.5365]
[1723967646142,7.63495879,141.37,141.35,0.05176001]
[1723967647433,11.17145879,141.37,141.35,0.05176001]
[1723967654139,7.63495879,141.37,141.35,0.05176001]
[1723967655349,8.91225879,141.37,141.35,0.05176001]
[1723967655550,8.91225879,141.37,141.32,3.5374]
[1723967655752,7.59,141.33,141.32,3.5374]
[1723967657345,7.59,141.33,141.31,0.04711044]
[1723967657346,7.59,141.33,141.31,3.58481044]
[1723967658147,3.58342083,141.34,141.31,0.04711044]
[1723967658349,7.59,141.32,141.31,0.04711044]
[1723967660056,0.04632083,141.34,141.31,3.58491044]
[1723967660261,0.04632083,141.34,141.31,0.04711044]
[1723967660562,0.04632083,141.34,141.32,3.5375]
[1723967662263,7.63632083,141.34,141.32,3.5375]
[1723967662458,11.17342083,141.34,141.31,3.58481044]
[1723967662660,7.59,141.32,141.31,3.58481044]
[1723967666270,7.59,141.32,141.31,0.04711044]
[1723967666666,3.58342083,141.34,141.31,0.04711044]
[1723967666667,0.04632083,141.34,141.31,0.04711044]
[1723967666868,7.63632083,141.34,141.31,0.04711044]
[1723967667476,7.63632083,141.34,141.31,3.58471044]
[1723967668965,7.59,141.33,141.31,3.58471044]
[1723967669972,7.59,141.33,141.31,0.04711044]
[1723967674770,7.59,141.33,141.31,3.58481044]
[1723967675864,7.63632083,141.34,141.31,0.04711044]
[1723967676477,7.63632083,141.34,141.32,3.5374]
[1723967679676,7.59,141.33,141.32,3.5374]
[1723967681078,7.59,141.33,141.31,3.58481044]
[1723967686283,3.5375,141.32,141.31,0.04711044]
[1723967686680,3.5375,141.32,141.26,1.3018]
[1723967686880,7.59,141.29,141.28,3.5384]
[1723967692588,0.05367762,141.3,141.29,3.5383]
[1723967701396,7.64367762,141.3,141.29,3.5383]
[1723967701993,0.05367762,141.3,141.29,3.5383]
[1723967713901,0.05367762,141.3,141.29,4.9238]
[1723967714810,7.59,141.35,141.33,3.5373]
[1723967715704,7.59,141.35,141.33,3.58411642]
[1723967715903,7.63559437,141.35,141.33,3.58411642]
[1723967716505,7.63559437,141.35,141.34,3.537]
[1723967718709,7.63559437,141.35,141.33,3.58401642]
[1723967718903,7.59,141.34,141.33,3.58401642]
[1723967719306,7.59,141.34,141.33,0.04681642]
[1723967720406,7.59,141.34,141.33,3.58411642]
[1723967721210,7.59,141.34,141.33,0.04681642]
[1723967721811,0.04559437,141.35,141.33,0.04681642]
[1723967722014,7.59,141.34,141.33,0.04681642]
[1723967722911,0.04559437,141.35,141.33,0.04681642]
[1723967723307,7.59,141.34,141.33,0.04681642]
[1723967724216,0.04559437,141.35,141.29,1.3855]
[1723967724413,7.59,141.31,141.29,1.3855]
[1723967724621,7.59,141.31,141.3,3.5378]
[1723967729220,7.59,141.31,141.29,1.43387955]
[1723967729520,7.64041513,141.32,141.29,0.04837955]
[1723967730922,7.64041513,141.32,141.3,3.5378]
[1723967731626,0.05041513,141.32,141.31,3.5378]
[1723967732921,12.9273,141.37,141.33,3.5371]
[1723967733118,4.06,141.4,141.31,7.59]
[1723967733325,7.59,141.38,141.32,7.59]
[1723967733522,7.59,141.38,141.32,11.65]
[1723967734026,7.59,141.38,141.35,3.5366]
[1723967734230,0.04708895,141.36,141.35,3.5366]
[1723967737826,7.59,141.39,141.34,7.64219814]
[1723967738031,4.8772,141.42,141.34,7.64219814]
[1723967738032,7.59,141.41,141.34,7.64219814]
[1723967738933,0.05292819,141.39,141.36,7.59]
[1723967739133,0.05292819,141.39,141.37,4.06]
[1723967739735,0.05292819,141.39,141.38,3.536]
[1723967740235,7.59,141.44,141.41,3.5351]
[1723967741225,7.64384882,141.44,141.41,3.58778011]
[1723967741725,7.59,141.42,141.41,3.58778011]
[1723967742133,7.59,141.43,141.41,3.58778011]
[1723967742635,0.05384882,141.44,141.41,3.58778011]
[1723967742934,7.59,141.43,141.41,3.58778011]
[1723967744936,0.05384882,141.44,141.41,3.58778011]
[1723967745234,7.59,141.43,141.41,3.58778011]
[1723967753330,7.59,141.42,141.41,0.05268011]
[1723967758235,3.58844882,141.44,141.41,0.05268011]
[1723967758436,7.59,141.43,141.41,3.58798011]
[1723967758740,3.58844882,141.44,141.41,3.58798011]
[1723967758942,7.59,141.43,141.41,3.58798011]
[1723967761341,7.59,141.42,141.41,3.58798011]